Cogmind - Beta 14 @@@ ROGUE MODE // 2024.09.29 @ 17:15:04 Player: Cmdr.Laserstrahl Result: Destroyed by G-67 Veteran with Field Laser Performance ------------- Evolutions (4) 2000 Regions Visited (8) 1600 Robots Destroyed (144) 720 Value Destroyed (4469) 4469 Prototype IDs (6) 120 Alien Tech Used (0) 0 Bonus (519) 519 TOTAL SCORE: 9428 Bonus ------- High Alert Combat Kills 562 Friendly Fire -43 Cogmind --------- Core Integrity 0/850 Matter 121/300 Energy 5/475 System Corruption 20% Temperature Cool (9) Movement Walking (120) Location -6/Factory Parts ------- > --- POWER (2) -------- Light Ion Engine > --- PROPULSION (4) --- Carbon-fiber Leg Flexi-carbon Leg Armored Leg Armored Leg > --- UTILITY (7) ------ Advanced Heat Sink Large Storage Unit Energy Well Targeting Computer Advanced Targeting Computer Powered Armor Improved Shield Generator > --- WEAPON (2) ------- Heavy Plasma Cannon Coil Gun > --- INVENTORY (15) --- Improved Melee Analysis Suite Advanced Melee Analysis Suite Weapon Mount Kinecellerator Cloaking Device Cloaking Device Powered Armor Recalibrator Drone Bay (1/2) Proton Cannon Gauss Rifle Advanced Assault Cannon Improved Proton Missile Launcher Grenade Launcher Flail Peak State ------------ > --- POWER ------------ Light Angular Momentum Engine F-cell Engine > --- PROPULSION ------- Carbon-fiber Leg Flexi-carbon Leg Flexi-carbon Leg Armored Leg > --- UTILITY ---------- Advanced Heat Sink Coolant Injector Medium Storage Unit High-capacity Matter Pod Advanced Signal Interpreter Advanced Melee Analysis Suite Corruption Screen > --- WEAPON ----------- Phase Cannon Phase Cannon > --- INVENTORY -------- Armored Wheel Gyrokinetic Inverter Advanced Melee Analysis Suite Advanced Melee Analysis Suite Drone Bay Heavy Particle Cannon Improved Proton Missile Launcher Grenade Launcher Rocket Launcher Heavy Hammer [Rating: 67] Favorites ----------- Power Enhanced Nuclear Core Engine Heavy Ion Engine Power Core Enhanced Nuclear Core Propulsion Gyrokinetic Inverter Leg Carbon-fiber Leg Wheel Compact Wheel Hover Unit Gyrokinetic Inverter Utility Medium Storage Unit Device Improved Heat Sink Storage Medium Storage Unit Processor Improved Signal Interpreter Hackware Hacking Suite Protection Hardened Medium Armor Plating Weapon Coil Gun Energy Gun Beam Rifle Energy Cannon Advanced Beam Cannon Ballistic Gun Coil Gun Ballistic Cannon Flak Cannon Launcher Grenade Launcher Impact Weapon Heavy Hammer Slashing Weapon Katana Build | -11 -10 -10 -9 -8 -7 -6 -6 -6 ------- Run | Yrd Mat Min Mat Mat Fac Fac Was Fac Slots Evolved 8 | . . . 2 2 2 2 . . Power 1 | . . . . . . 1 . . Propulsion 2 | . . . . 1 1 . . . Utility 5 | . . . 2 1 1 1 . . Weapon . | . . . . . . . . . Parts Attached 171 | 7 1 3 16 20 25 34 3 62 Power 26 | 1 1 . 3 2 1 7 . 11 Engine 16 | 1 1 . 2 1 . 7 . 4 Core 10 | . . . 1 1 1 . . 7 Reactor . | . . . . . . . . . Propulsion 44 | 2 . 1 4 5 9 7 2 14 Treads . | . . . . . . . . . Leg 26 | . . . . 3 5 7 1 10 Wheel 14 | 2 . 1 4 2 . . 1 4 Hover 4 | . . . . . 4 . . . Flight . | . . . . . . . . . Utility 62 | 2 . 1 6 10 6 14 1 22 Device 27 | 1 . . 3 2 2 6 1 12 Storage 8 | 1 . . 2 . . 3 . 2 Processor 10 | . . . 1 2 . 4 . 3 Hackware 1 | . . . . . . 1 . . Protection 16 | . . 1 . 6 4 . . 5 Artifact . | . . . . . . . . . Weapon 39 | 2 . 1 3 3 9 6 . 15 Energy Gun 5 | . . . 1 . 2 . . 2 Energy Cannon 8 | . . . 1 1 . 4 . 2 Ballistic Gun 14 | 2 . . 1 1 2 . . 8 Ballistic Cannon 5 | . . 1 . . 2 1 . 1 Launcher 2 | . . . . . 1 . . 1 Special Weapon . | . . . . . . . . . Impact Weapon 2 | . . . . . 1 . . 1 Slashing Weapon 3 | . . . . 1 1 1 . . Piercing Weapon . | . . . . . . . . . Special Melee Weapon . | . . . . . . . . . Unidentified Prototypes 3 | . . . 2 . . 1 . . Corrupted Parts 2 | . . . . . . 1 . 1 System Corruption 5 | . . . . . . 1 . 4 Parts Lost 48 | . . 1 2 4 5 11 6 19 Power 8 | . . . . . . 3 . 5 Propulsion 13 | . . 1 1 1 . 2 3 5 Utility 22 | . . . 1 2 5 5 2 7 Weapon 5 | . . . . 1 . 1 1 2 Highest Loss Streak 6 | . . 1 1 2 2 4 6 6 To Critical Strikes . | . . . . . . . . . Average Slot Usage (%) 89 | . 100 100 97 94 99 89 79 77 Engine 4 | . 14 14 5 8 . 6 11 2 Core 4 | . . . 5 . 7 2 . 5 Leg 11 | . . . . 1 20 6 21 19 Wheel 7 | . 28 28 21 22 . . . 2 Hover 4 | . . . . . 9 15 . . Device 14 | . 14 3 22 18 11 12 10 13 Storage 8 | . 14 14 11 9 7 11 11 6 Processor 7 | . . . 1 5 7 15 11 8 Protection 7 | . . 10 7 11 17 . . 4 Energy Cannon 4 | . . . 7 7 3 5 10 2 Ballistic Gun 4 | . 28 17 1 . 2 . . 6 Ballistic Cannon 3 | . . 10 11 7 1 . . 1 Slashing Weapon 1 | . . . . 1 4 3 . . Peak Build Rating 67 | 7 8 12 20 38 54 67 60 63 Average Rating 38 | 5 7 10 17 22 46 56 48 46 On Entrance 21 | . 7 8 12 19 38 46 60 1 Naked Turns 16 | . . . . . . . 16 . Heaviest Build 62 | 13 13 21 31 47 55 51 51 62 Greatest Support 72 | 26 26 26 32 54 72 71 66 67 Greatest Overweight (x) 4 | . . . 1 1 1 2 2 4 Average Overweight (x) . | . . . . . . . . . Largest Inventory Capacity 15 | 8 8 8 10 10 10 10 10 15 Average Capacity 10 | 7 8 8 9 10 10 10 9 13 Most Carried 15 | 6 8 8 10 10 10 10 10 15 Average Carried 9 | 2 7 7 9 9 9 9 9 11 Final Capacity 15 | 8 8 8 10 10 10 10 5 15 Final Carried 15 | 6 8 8 10 10 10 10 5 15 Class Distribution -------------------- 54% | Scavenger-Mutant 42% | Mutant Dominant Class ---------------- Mutant | -10/Materials Mutant | -10/Mines Scavenger-Mutant | -9/Materials Scavenger-Mutant | -8/Materials Mutant | -7/Factory Mutant | -6/Factory Scavenger-Mutant | -6/Waste Scavenger-Mutant | -6/Factory Resources | -11 -10 -10 -9 -8 -7 -6 -6 -6 ----------- Run | Yrd Mat Min Mat Mat Fac Fac Was Fac Matter Collected 3834 | 388 82 10 730 503 637 377 . 1107 Remotely . | . . . . . . . . . Salvage Created 5939 | 168 296 . 922 713 972 673 . 2195 Parts 287 | 7 16 . 48 50 52 18 . 96 Haulers Intercepted 7 | . . . 3 3 . . . 1 Recyclers Shooed 10 | . . . . . 1 1 . 8 Parts Field Recycled . | . . . . . . . . . Retrieved Matter . | . . . . . . . . . Parts Self-Destructed . | . . . . . . . . . Prevented . | . . . . . . . . . Kills | -11 -10 -10 -9 -8 -7 -6 -6 -6 ------- Run | Yrd Mat Min Mat Mat Fac Fac Was Fac Combat Hostiles Destroyed 90 | . 7 . 21 20 13 11 . 18 Melee 10 | . . . . 2 7 . . 1 Guns 26 | . 7 . 6 1 2 . . 10 Cannons 42 | . . . 15 16 1 5 . 5 AOE 7 | . . . . . 3 2 . 2 Classes Destroyed 14 | 3 1 . 5 2 3 . . . Worker 15 | 1 . . 1 . 4 1 . 8 Builder 6 | . . . 1 . . . . 5 Tunneler 5 | 4 . . . . . . . 1 Hauler 7 | . . . 3 3 . . . 1 Recycler 15 | 1 . . 1 1 3 1 . 8 Mechanic 3 | . . . . . 1 . . 2 Watcher 3 | . . . 1 2 . . . . Swarmer 18 | . . . 4 10 . . . 4 Grunt 39 | . 7 . 12 2 7 5 . 6 Brawler 1 | . . . . 1 . . . . Duelist 2 | . . . . . 1 . . 1 Sentry 20 | . . . 5 6 4 3 . 2 Hunter 6 | . . . . 1 . 3 . 2 Programmer 4 | . . . . . 1 . . 3 Best Kill Streak 8 | 5 4 . 8 6 7 2 . 6 Combat Bots Only 5 | . 4 . 4 5 4 2 . 4 Max Kills in Single Turn 6 | 1 1 . 1 1 3 2 . 6 Gunslinging . | . . . . . . . . . Exploded 3 | . . . . . 3 1 . 1 Melee 1 | . . . . 1 1 . . 1 Uniques/NPCs Destroyed . | . . . . . . . . . Combat | -11 -10 -10 -9 -8 -7 -6 -6 -6 -------- Run | Yrd Mat Min Mat Mat Fac Fac Was Fac Hostile Shots Fired 935 | . 36 9 71 97 216 208 6 292 Missed 314 | . 12 1 25 31 83 71 . 91 Damage Taken 8938 | . 289 80 528 739 2130 1673 275 3224 Core 1558 | . 90 10 82 218 308 372 133 345 Absorbed by Shields 46 | . . . . . . . . 46 Ignored by Resistances 129 | . . . 58 31 40 . . . Regen/Repaired (Parts) 256 | . . . . 59 197 . . . Core Remaining (%) 71 | 100 . 60 79 60 56 . . . Volleys Fired 405 | 32 30 2 69 60 38 37 . 137 Largest 2 | 2 2 2 2 2 2 2 . 2 Hottest 170 | 40 40 64 112 112 112 170 . 135 Shots Fired 753 | 63 60 4 127 113 69 66 . 251 Gun 367 | 63 60 3 26 17 33 . . 165 Cannon 384 | . . 1 101 96 35 66 . 85 Launcher 2 | . . . . . 1 . . 1 Special . | . . . . . . . . . Kinetic 475 | 63 60 4 63 73 32 13 . 167 Thermal 263 | . . . 64 40 36 53 . 70 Explosive 2 | . . . . . 1 . . 1 Electromagnetic 13 | . . . . . . . . 13 Robot Hit Streak 24 | 7 8 3 8 16 4 7 . 24 Robot Miss Streak 10 | 4 3 2 10 9 10 5 . 4 Penetration Max 2 | . . . . . 1 . . 2 Secondary Targets 4 | . 3 . . . . . . 1 Max Gunslinging Chain 1 | . 1 . . . . . . 1 Shots Hit Robots 552 | 39 41 2 77 85 66 66 . 176 Core Hits 296 | 13 19 2 67 58 32 28 . 77 Critical Kills 7 | . 1 . 1 2 . . . 3 Critical Parts Destroyed 9 | . . . . . 1 3 . 5 Critical Strikes 29 | . 1 . 8 2 4 5 . 9 Burn 7 | . . . 7 . . . . . Meltdown 2 | . . . 1 1 . . . . Destroy 8 | . 1 . . 1 . . . 6 Blast 1 | . . . . . . . . 1 Smash 7 | . . . . . 1 4 . 2 Sever 4 | . . . . . 3 1 . . Melee Attacks 89 | . . . . 10 45 30 . 4 Impact 33 | . . . . . 9 20 . 4 Slashing 56 | . . . . 10 36 10 . . Piercing . | . . . . . . . . . Sneak Attacks 4 | . . . . . 4 . . . Combat Hostiles . | . . . . . . . . . Follow-up Attacks 4 | . . . . . 1 3 . . Damage Inflicted 14521 | 354 334 35 1601 1549 2379 2192 . 6077 Guns 4386 | 354 334 17 233 91 390 . . 2967 Cannons 5574 | . . 18 1246 1189 350 1133 . 1638 Explosions 2168 | . . . 122 . 488 231 . 1327 Melee 2386 | . . . . 269 1151 828 . 138 Ramming 7 | . . . . . . . . 7 Kinetic 6200 | 354 334 35 839 849 409 250 . 3130 Thermal 5634 | . . . 754 431 810 1114 . 2525 Explosive 73 | . . . . . 9 . . 64 Electromagnetic 221 | . . . 8 . . . . 213 Impact 1004 | . . . . . 244 622 . 138 Slashing 1382 | . . . . 269 907 206 . . Piercing . | . . . . . . . . . Highest Corruption 21 | . . . . . . 2 14 21 Average Corruption 13 | . . . . . . 1 8 17 Corruption Purged 3 | . . . . . . . . 3 Corruption Blocked 16 | . . . . . . 13 3 . Effects 88 | . . . . . . 4 4 80 Message Errors 23 | . . . . . . 2 1 20 Matter Fused 17 | . . . . . . 1 . 16 Heat Flow Errors 10 | . . . . . . . . 10 Energy Discharges 10 | . . . . . . 1 . 9 Parts Rejected 2 | . . . . . . . 1 1 Parts Fused 1 | . . . . . . . . 1 Data Loss (minor) 6 | . . . . . . . 2 4 Data Loss (major) 3 | . . . . . . . . 3 Misfires 4 | . . . . . . . . 4 Alerts 1 | . . . . . . . . 1 Misdirections 2 | . . . . . . . . 2 Weapon Failures 9 | . . . . . . . . 9 Overload Shots . | . . . . . . . . . Overflow Damage 902 | . . . 2 8 251 173 . 468 Projectiles 125 | . . . 2 8 . 25 . 90 Explosions 392 | . . . . . 45 10 . 337 Melee 385 | . . . . . 206 138 . 41 Knockbacks 53 | . . 1 11 18 3 13 . 7 Impact 7 | . . . . . 1 5 . 1 Kinetic 44 | . . 1 11 18 1 7 . 6 Secondary 2 | . . . . . 1 1 . . Self-Inflicted Damage 303 | . . . 35 . 268 . . . Shots 5 | . . . 1 . 4 . . . Rammed . | . . . . . . . . . Targets Rammed 1 | . . . . . . . . 1 Kicked 1 | . . . . . . . . 1 Crushed . | . . . . . . . . . Highest Temperature 638 | . 18 30 312 123 638 223 . 352 Average Temperature 92 | . 7 14 68 17 167 91 . 103 Received Heat Transfer 2872 | . 156 21 234 180 594 567 . 1120 Effects 13 | . . . . . 11 . . 2 Interference 1 | . . . . . . . . 1 Matter Decay 2 | . . . . . 1 . . 1 Short Circuit 2 | . . . . . 2 . . . Damage (major) 7 | . . . . . 7 . . . Damage (core) 1 | . . . . . 1 . . . Siege Activations . | . . . . . . . . . Robots Corrupted 5 | . . . . . 1 4 . . Combat Hostiles 4 | . . . . . . 4 . . Parts Fried 5 | . . . . . 1 4 . . Impact Corruptions 11 | . . . . . 3 7 . 1 Robots Melted 2 | . . . 1 1 . . . . Combat Hostiles 1 | . . . . 1 . . . . Parts Melted 13 | . . . 5 2 . 3 . 3 Heat Transferred 7285 | . . . 1826 777 929 1223 . 2530 Parts Sabotaged . | . . . . . . . . . Parts Stolen . | . . . . . . . . . Parts Stripped . | . . . . . . . . . Power Chain Reactions . | . . . . . . . . . Alert | -11 -10 -10 -9 -8 -7 -6 -6 -6 ------- Run | Yrd Mat Min Mat Mat Fac Fac Was Fac Peak Influence 865 | 30 183 70 614 865 739 614 197 694 Initial 393 | . 19 70 11 259 393 352 182 95 Average 394 | 8 98 44 357 595 572 428 183 314 Maximum Alert Level 3 | . . . 2 3 3 2 . 2 Low Security (%) 25 | 100 100 100 23 . . . 100 38 Level 1 23 | . . . 28 22 8 47 . 28 Level 2 44 | . . . 48 35 84 52 . 32 Level 3 6 | . . . . 41 6 . . . Level 4 . | . . . . . . . . . Level 5 . | . . . . . . . . . High Security . | . . . . . . . . . Max Security . | . . . . . . . . . Squads Dispatched 24 | . 2 . 4 3 6 4 . 5 Investigation 7 | . 1 . 2 2 . 2 . . Extermination 5 | . . . . . 1 1 . 3 Reinforcement 8 | . 1 . 2 . 3 1 . 1 Assault 2 | . . . . . 1 . . 1 Garrison 2 | . . . . 1 1 . . . Intercept . | . . . . . . . . . Searches Triggered . | . . . . . . . . . Construction Impeded 2 | . . . . . 1 . . 1 Haulers Reinforced . | . . . . . . . . . Active Scanning Responses . | . . . . . . . . . Cargo Convoy Interrupts . | . . . . . . . . . Stealth | -11 -10 -10 -9 -8 -7 -6 -6 -6 --------- Run | Yrd Mat Min Mat Mat Fac Fac Was Fac Distress Signals 6 | . 1 . 3 1 . . . 1 Communications Jammed . | . . . . . . . . . Distress Signals . | . . . . . . . . . Times Spotted 169 | . 7 7 35 32 33 19 6 30 Peak Tracking Total 8 | . 3 3 8 4 7 3 6 6 Tactical Retreats 17 | . . 1 2 4 3 3 . 4 Traps | -11 -10 -10 -9 -8 -7 -6 -6 -6 ------- Run | Yrd Mat Min Mat Mat Fac Fac Was Fac Traps Triggered 7 | . 1 . 1 1 . 2 . 2 Indirectly . | . . . . . . . . . Trap Hack Attempts . | . . . . . . . . . Triggered . | . . . . . . . . . Disarmed . | . . . . . . . . . Reprogrammed . | . . . . . . . . . Reused . | . . . . . . . . . Traps Extracted . | . . . . . . . . . Installed . | . . . . . . . . . Triggered . | . . . . . . . . . Machines | -11 -10 -10 -9 -8 -7 -6 -6 -6 ---------- Run | Yrd Mat Min Mat Mat Fac Fac Was Fac Machines Disabled 34 | . . . 3 . 4 9 . 18 Max in Single Turn 8 | . . . 2 . 4 3 . 8 Garrison Access 3 | . . . . 1 1 . . 1 Machines Repaired . | . . . . . . . . . Machines Dismantled . | . . . . . . . . . Machines Sabotaged . | . . . . . . . . . Overloaded Fab Kills . | . . . . . . . . . Hacking | -11 -10 -10 -9 -8 -7 -6 -6 -6 --------- Run | Yrd Mat Min Mat Mat Fac Fac Was Fac Machines Accessed 29 | . 3 1 6 8 5 2 . 4 Terminals 15 | . 3 . 4 5 2 . . 1 Fabricators 2 | . . . . . 1 . . 1 Repair Stations 2 | . . . . 1 1 . . . Recycling Units 2 | . . . 1 . . . . 1 Scanalyzers 5 | . . . 1 1 . 2 . 1 Garrison Access 2 | . . . . 1 1 . . . Total Hacks 85 | . 7 1 22 23 8 6 . 18 Successful 52 | . 5 1 11 15 5 4 . 11 Failed 33 | . 2 . 11 8 3 2 . 7 Catastrophic 5 | . . . 2 2 . . . 1 Database Lockouts . | . . . . . . . . . Manual 34 | . 7 . 10 13 4 . . . Terminals 38 | . 7 . 10 16 4 . . 1 Fabricators 2 | . . . . . 1 . . 1 Repair Stations 4 | . . . . 2 2 . . . Recycling Units 4 | . . . 1 . . . . 3 Scanalyzers 34 | . . . 11 4 . 6 . 13 Garrison Access 2 | . . . . 1 1 . . . Terminal Hacks 5 | . 1 1 . 3 . . . . Prototype ID Bank 1 | . . . . 1 . . . . Open Door 1 | . . 1 . . . . . . Terminal Index 2 | . 1 . . 1 . . . . Zone Layout 1 | . . . . 1 . . . . Fabricator Hacks 1 | . . . . . 1 . . . Build 1 | . . . . . 1 . . . Repair Station Hacks 4 | . . . . 2 2 . . . Scan Component 2 | . . . . 1 1 . . . Repair 2 | . . . . 1 1 . . . Recycling Unit Hacks 3 | . . . 1 . . . . 2 Report Inventory 2 | . . . 1 . . . . 1 Retrieve Matter 1 | . . . . . . . . 1 Scanalyzer 27 | . . . 10 4 . 4 . 9 Insert Component 13 | . . . 5 2 . 2 . 4 Analyze 14 | . . . 5 2 . 2 . 5 Garrison Access Hacks 2 | . . . . 1 1 . . . Seal Access 2 | . . . . 1 1 . . . Unauthorized Hacks 10 | . 4 . . 5 1 . . . Terminals 10 | . 4 . . 5 1 . . . Track 2 | . 1 . . 1 . . . . Botnet 8 | . 3 . . 4 1 . . . Fabricators . | . . . . . . . . . Repair Stations . | . . . . . . . . . Recycling Units . | . . . . . . . . . Scanalyzers . | . . . . . . . . . Garrison Access . | . . . . . . . . . Data Cores Recovered . | . . . . . . . . . Used . | . . . . . . . . . Hacking Detections 19 | . 3 . 5 5 2 2 . 2 Full Trace Events 5 | . . . 2 1 . 2 . . Feedback Events 2 | . . . . . . 2 . . Corruption 1 | . . . . . . 1 . . Hackware Fried 1 | . . . . . . 1 . . Feedback Blocked . | . . . . . . . . . Robot Schematics Acquired . | . . . . . . . . . Robots Built . | . . . . . . . . . Authchips . | . . . . . . . . . Time . | . . . . . . . . . Total Robot Build Rating . | . . . . . . . . . Part Schematics Acquired 12 | . . . 4 2 . 2 . 4 Parts Built 2 | . . . . . 2 . . . Authchips . | . . . . . . . . . Time 117 | . . . . . 117 . . . Total Part Build Rating 14 | . . . . . 14 . . . Parts Repaired 2 | . . . . 1 1 . . . Time 70 | . . . . 32 38 . . . Parts Recycled . | . . . . . . . . . Recycled Matter . | . . . . . . . . . Retrieved Matter 137 | . . . . . . . . 137 Retrieved Components . | . . . . . . . . . Parts Scanalyzed 12 | . . . 4 2 . 2 . 4 Part Schematics Acquired 12 | . . . 4 2 . 2 . 4 Parts Damaged . | . . . . . . . . . Bothacking | -11 -10 -10 -9 -8 -7 -6 -6 -6 ------------ Run | Yrd Mat Min Mat Mat Fac Fac Was Fac Used RIF Installer . | . . . . . . . . . Robots Hacked . | . . . . . . . . . Non-combat . | . . . . . . . . . Combat . | . . . . . . . . . Robot Hacks Applied . | . . . . . . . . . Relay Couplers Released 5 | . . . . . . . . 5 Machine Destruction 2 | . . . . . . . . 2 Programmers 3 | . . . . . . . . 3 Fabnet Peak Effective % . | . . . . . . . . . Robots Rewired . | . . . . . . . . . Allies Hacked . | . . . . . . . . . Hacks Repelled . | . . . . . . . . . Allies | -11 -10 -10 -9 -8 -7 -6 -6 -6 -------- Run | Yrd Mat Min Mat Mat Fac Fac Was Fac Total Allies 3 | . . 3 . . . . . . Largest Group 3 | . . 3 . . . . . . Highest-Rated Group 40 | . . 40 . . . . . . Highest-Rated Ally 16 | . . 16 . . . . . . Total Orders 10 | . . . . . . 8 . 2 ROAM 1 | . . . . . . 1 . . EXPLORE 6 | . . . . . . 5 . 1 RETURN 3 | . . . . . . 2 . 1 Ally Attacks 3 | . . 3 . . . . . . Total Damage 30 | . . 30 . . . . . . Kills . | . . . . . . . . . Allies Corrupted . | . . . . . . . . . Allies Melted . | . . . . . . . . . Intel | -11 -10 -10 -9 -8 -7 -6 -6 -6 ------- Run | Yrd Mat Min Mat Mat Fac Fac Was Fac Robot Analysis Total . | . . . . . . . . . Derelict Logs Recovered . | . . . . . . . . . Drone Launches 6 | . . . . . . 5 . 1 Drone Recoveries 5 | . . . . . . 5 . . Exploration | -11 -10 -10 -9 -8 -7 -6 -6 -6 ------------- Run | Yrd Mat Min Mat Mat Fac Fac Was Fac Turns Passed 5644 | 153 175 174 689 691 1102 857 163 1640 Spaces Moved 3531 | 60 80 168 430 408 817 545 150 873 Core 120 | 9 . . . . . . 36 75 Treads . | . . . . . . . . . Legs 1315 | . . . . 10 421 114 113 657 Wheels 1269 | 51 80 168 430 398 . . 1 141 Hover 827 | . . . . . 396 431 . . Flight . | . . . . . . . . . Fastest Speed 50 | 50 90 90 90 86 58 58 50 90 Average Speed 100 | 84 90 90 99 97 90 87 105 122 Slowest Speed 260 | 100 90 100 115 190 190 190 190 260 Overloaded Moves . | . . . . . . . . . Propulsion Burnouts . | . . . . . . . . . Robots Hopped . | . . . . . . . . . Cave-ins Triggered . | . . . . . . . . . Exploration Rate (%) 36 | 3 17 54 43 51 22 14 97 27 Regions Visited 8 Branch Regions 1 Pre-discovered Areas . | . . . . . . . . . Known Exits Taken 2 | . . . . 1 1 . . . Unknown Exits Taken 4 | 1 1 1 1 . . . . . Scrap Searched . | . . . . . . . . . Spaces Dug 10 | . . . . 1 5 3 . 1 Terrain Destroyed 226 | . . . 27 1 72 54 . 72 Melee 6 | . . . . 1 5 . . . Projectile 25 | . . . . . 4 10 . 11 AOE 195 | . . . 27 . 63 44 . 61 Terrain Rammed . | . . . . . . . . . Walls Destroyed . | . . . . . . . . . Machines Disabled . | . . . . . . . . . Actions | -11 -10 -10 -9 -8 -7 -6 -6 -6 --------- Run | Yrd Mat Min Mat Mat Fac Fac Was Fac Total 4757 | 111 134 189 568 581 1044 805 153 1172 Wait 399 | . 21 8 28 50 99 143 . 50 Move 3524 | 59 79 167 429 407 816 545 149 873 Hop . | . . . . . . . . . Pick Up 84 | 13 2 5 11 15 8 7 . 23 Fast Attach 85 | . . . 7 9 10 19 2 38 Attach 41 | 7 . 3 1 6 5 5 1 13 Detach 9 | . . . . 1 1 2 . 5 Swap 45 | . 1 . 8 5 10 10 . 11 Drop 81 | . 1 4 15 18 14 11 1 17 Fire 405 | 32 30 2 69 60 38 37 . 137 Melee 83 | . . . . 10 43 26 . 4 Ram . | . . . . . . . . . Kick 1 | . . . . . . . . 1 Crush . | . . . . . . . . . Escape Stasis . | . . . . . . . . . Rewire . | . . . . . . . . . Trap . | . . . . . . . . . Miscellaneous . | . . . . . . . . . Route ------- -11/Scrapyard -10/Materials -10/Mines (discovered 2 exits: *Mat x2) -9/Materials (discovered 2 exits: *Mat / [*Min]) -8/Materials -7/Factory -6/Factory -6/Waste -6/Factory History --------- Turn | Location | Event 2 | -11/Scrapyard | Met Revision 17 23 | -11/Scrapyard | Discovered new exit (range 15) 154 | -11/Scrapyard | Entered Materials 252 | -10/Materials | Discovered new exit (range 9) 304 | -10/Materials | Build established: Mutant 311 | -10/Materials | Met 8R-AWN 329 | -10/Materials | Entered Mines 330 | -10/Mines | Followed 8R-AWN into the Mines 351 | -10/Mines | Discovered new exit (range 8) 367 | -10/Mines | Met a Derelict who couldn't figure out how to use a Trap Extractor 404 | -10/Mines | Assisted by bots powering up and referring to "LRC-V3" 412 | -10/Mines | Received a Rocket Launcher from a helpful Derelict 418 | -10/Mines | Assembled infested the area 423 | -10/Mines | Assisted by a Guerilla fighting off Assembled 470 | -10/Mines | Lost 3 allies 493 | -10/Mines | Discovered new exit (range 15) 503 | -10/Mines | Entered Materials 503 | -9/Materials | Evolved 2 slots: Utility x2 704 | -9/Materials | Discovered new exit (range 7) 954 | -9/Materials | Build established: Scavenger-Mutant 1071 | -9/Materials | Discovered new exit (range 4) 1192 | -9/Materials | Entered another Materials area 1192 | -8/Materials | Evolved 2 slots: Propulsion x1, Utility x1 1390 | -8/Materials | Repaired Arm. Wheel 1530 | -8/Materials | Garrison activated, responded to threat 1765 | -8/Materials | Discovered new exit (range 13) 1818 | -8/Materials | Identified exit to Factory 1883 | -8/Materials | Entered Factory 1883 | -7/Factory | Evolved 2 slots: Propulsion x1, Utility x1 1918 | -7/Factory | Build established: Mutant 2262 | -7/Factory | Garrison activated, responded to threat 2291 | -7/Factory | Fabricated Imp. Force Field? 2668 | -7/Factory | Build established: Scavenger-Mutant 2683 | -7/Factory | First assault squad dispatched 2855 | -7/Factory | Repaired Hrd. Medium Armor Plating 2924 | -7/Factory | Discovered new exit (range 5) 2925 | -7/Factory | Identified exit to Factory 2985 | -7/Factory | Entered another Factory area 2985 | -6/Factory | Evolved 2 slots: Power x1, Utility x1 3050 | -6/Factory | Build established: Mutant 3383 | -6/Factory | Hacking Suite fried by hacking feedback 3414 | -6/Factory | Lost 4 parts (1p2n1u) 3842 | -6/Factory | Sucked down chute 3842 | -6/Factory | Entered Waste 3857 | -6/Waste | EMP discharged 3865 | -6/Waste | Spotted C-40 Crusher 3896 | -6/Waste | Spotted C-40 Crusher 3916 | -6/Waste | Spotted C-40 Crusher 3940 | -6/Waste | Build established: Scavenger-Mutant 3954 | -6/Waste | Spotted C-40 Crusher 3957 | -6/Waste | EMP discharged 3957 | -6/Waste | System corruption reached 10% 3975 | -6/Waste | Spotted C-40 Crusher 3975 | -6/Waste | Crushed by Compactor (1 part destroyed, 2 dropped) 3978 | -6/Waste | Crushed by Compactor (1 part destroyed, 2 dropped) 3979 | -6/Waste | Spotted C-40 Crusher 3981 | -6/Waste | Crushed by Compactor (1 part destroyed, 1 dropped) 3984 | -6/Waste | Crushed by Compactor (1 part destroyed, 2 dropped) 3985 | -6/Waste | Crushed by Compactor (1 part destroyed, 1 dropped) 3986 | -6/Waste | Core integrity fell below 50% 3989 | -6/Waste | Crushed by Compactor (1 part destroyed, 1 dropped) 3999 | -6/Waste | Discovered new exit (range 12) 4005 | -6/Waste | Entered Factory 4020 | -6/Factory | Lost 6 parts (3n2u1w) 4426 | -6/Factory | Lost 6 parts (1p4n1w) 4743 | -6/Factory | Lost 6 parts (1n5u) 4775 | -6/Factory | Core integrity fell below 20% 5268 | -6/Factory | Spotted B-75 Beast 5518 | -6/Factory | Found Powered Armor 5520 | -6/Factory | Found Powered Armor 5645 | -6/Factory | Destroyed by G-67 Veteran with Field Laser Last Messages --------------- 05548_ Dropped Carbon-fiber Leg. 05549_ Acquired Arm. Leg. 05551_ System corrupted: Matter fused (-9). 05556_ R-10 Processor collects Carbon-fiber Leg. 05558_ Destroyed Hpw. Tractor Beam. 05560_ Destroyed Com. Wheel. 05568_ /%B